[Event "*** Titled Tuesday Blitz"]
[Site "Chess.com"]
[Date "2020.11.03"]
[Round "9"]
[White "Zhigalko_Sergei"]
[Black "Beca95"]
[Result "1-0"]
[WhiteElo "2928"]
[BlackElo "2958"]
[TimeControl "180+1"]
[EndTime "11:51:03 PST"]
[Termination "Zhigalko_Sergei won by resignation"]

1. e4 {[%clk 0:03:00.9]} 1... e5 {[%clk 0:03:00]} 2. Nf3 {[%clk 0:03:01.2]} 2...
Nc6 {[%clk 0:03:00.6]} 3. Bb5 {[%clk 0:03:01.8]} 3... a6 {[%clk 0:02:59.8]} 4.
Ba4 {[%clk 0:03:02.2]} 4... Nf6 {[%clk 0:03:00]} 5. O-O {[%clk 0:03:02.1]} 5...
Be7 {[%clk 0:03:00]} 6. Re1 {[%clk 0:03:02.3]} 6... b5 {[%clk 0:02:59.4]} 7. Bb3
{[%clk 0:03:02.9]} 7... d6 {[%clk 0:02:59.7]} 8. c3 {[%clk 0:03:03]} 8... O-O
{[%clk 0:02:58.1]} 9. h3 {[%clk 0:03:03.4]} 9... Na5 {[%clk 0:02:58.2]} 10. Bc2
{[%clk 0:03:03.4]} 10... c5 {[%clk 0:02:58.4]} 11. d4 {[%clk 0:03:04.1]} 11...
Nd7 {[%clk 0:02:58.4]} 12. Qe2 {[%clk 0:03:03.3]} 12... Rb8 {[%clk 0:02:50.4]}
13. d5 {[%clk 0:02:48.2]} 13... g6 {[%clk 0:02:36]} 14. Bh6 {[%clk 0:02:47.6]}
14... Re8 {[%clk 0:02:35.2]} 15. Nbd2 {[%clk 0:02:44.8]} 15... Nb6 {[%clk
0:02:30.3]} 16. b4 {[%clk 0:02:29]} 16... cxb4 {[%clk 0:02:29]} 17. cxb4 {[%clk
0:02:29.2]} 17... Nac4 {[%clk 0:02:29.7]} 18. Nxc4 {[%clk 0:02:29.6]} 18... Nxc4
{[%clk 0:02:30.5]} 19. Bd3 {[%clk 0:02:30.2]} 19... Nb6 {[%clk 0:02:27.6]} 20.
Rec1 {[%clk 0:02:20.1]} 20... Bd7 {[%clk 0:02:27.2]} 21. Rc2 {[%clk 0:02:12.2]}
21... f5 {[%clk 0:02:22.8]} 22. Rac1 {[%clk 0:01:46.2]} 22... f4 {[%clk
0:01:57.8]} 23. Nd2 {[%clk 0:01:30.2]} 23... Bg5 {[%clk 0:01:43.1]} 24. Bxg5
{[%clk 0:01:29.3]} 24... Qxg5 {[%clk 0:01:44]} 25. Kh2 {[%clk 0:01:20.6]} 25...
Rec8 {[%clk 0:01:43.2]} 26. Nb3 {[%clk 0:01:14]} 26... Rxc2 {[%clk 0:01:42.2]}
27. Rxc2 {[%clk 0:01:12.4]} 27... Rc8 {[%clk 0:01:42]} 28. Rxc8+ {[%clk
0:00:47.8]} 28... Bxc8 {[%clk 0:01:42.9]} 29. Na5 {[%clk 0:00:45.8]} 29... Qh4
{[%clk 0:01:38.2]} 30. Kg1 {[%clk 0:00:23.5]} 30... h5 {[%clk 0:01:36.5]} 31.
Qc2 {[%clk 0:00:22.8]} 31... f3 {[%clk 0:01:35.1]} 32. Bf1 {[%clk 0:00:16.9]}
32... fxg2 {[%clk 0:01:33.4]} 33. Bxg2 {[%clk 0:00:17.8]} 33... Bxh3 {[%clk
0:01:29]} 34. Bxh3 {[%clk 0:00:15.9]} 34... Qxh3 {[%clk 0:01:29.9]} 35. Qc7
{[%clk 0:00:16.6]} 35... Qg4+ {[%clk 0:01:29.7]} 36. Kh2 {[%clk 0:00:16.8]}
36... Qf4+ {[%clk 0:01:14.3]} 37. Kg1 {[%clk 0:00:16.5]} 37... Qg4+ {[%clk
0:01:03]} 38. Kh2 {[%clk 0:00:16.6]} 38... h4 {[%clk 0:01:01.3]} 39. Qxb6 {[%clk
0:00:07.1]} 39... h3 {[%clk 0:01:00.2]} 40. Qd8+ {[%clk 0:00:07.4]} 40... Kg7
{[%clk 0:00:34.6]} 41. Qe7+ {[%clk 0:00:07.1]} 41... Kh6 {[%clk 0:00:35]} 42.
Qf8+ {[%clk 0:00:07.2]} 42... Kh5 {[%clk 0:00:28.9]} 43. Qh8+ {[%clk 0:00:06.5]}
43... Kg5 {[%clk 0:00:29.1]} 44. Qxh3 {[%clk 0:00:07.3]} 44... Qxe4 {[%clk
0:00:27.6]} 45. Qg2+ {[%clk 0:00:03]} 45... Kf4 {[%clk 0:00:27.9]} 46. Qg3+
{[%clk 0:00:02.6]} 46... Kf5 {[%clk 0:00:27.8]} 47. Nc6 {[%clk 0:00:03.4]} 47...
Kf6 {[%clk 0:00:23.8]} 48. Nd8 {[%clk 0:00:02.2]} 48... Qxd5 {[%clk 0:00:23.1]}
49. Qh4+ {[%clk 0:00:02.8]} 49... Kf5 {[%clk 0:00:20.1]} 50. Qh3+ {[%clk
0:00:02.5]} 50... Kf6 {[%clk 0:00:20.4]} 51. Qd7 {[%clk 0:00:02.9]} 51... e4
{[%clk 0:00:18]} 52. Nb7 {[%clk 0:00:02.7]} 52... Qh5+ {[%clk 0:00:17.4]} 53.
Kg2 {[%clk 0:00:02.9]} 53... Qg5+ {[%clk 0:00:17.8]} 54. Kf1 {[%clk 0:00:03]}
54... Qc1+ {[%clk 0:00:17.7]} 55. Kg2 {[%clk 0:00:03.5]} 55... Qg5+ {[%clk
0:00:17.8]} 56. Kf1 {[%clk 0:00:04.1]} 56... d5 {[%clk 0:00:17.9]} 57. Qd6+
{[%clk 0:00:03.7]} 57... Kg7 {[%clk 0:00:18.1]} 58. Nc5 {[%clk 0:00:04.1]} 58...
Qc1+ {[%clk 0:00:17.5]} 59. Kg2 {[%clk 0:00:04.7]} 59... Qg5+ {[%clk 0:00:18]}
60. Qg3 {[%clk 0:00:05.3]} 60... Qf5 {[%clk 0:00:18.5]} 61. Nxa6 {[%clk
0:00:04]} 61... d4 {[%clk 0:00:18.4]} 62. Nc5 {[%clk 0:00:04.4]} 62... d3 {[%clk
0:00:18.6]} 63. Qc7+ {[%clk 0:00:04.1]} 63... Kg8 {[%clk 0:00:17.2]} 64. Qd8+
{[%clk 0:00:03.9]} 64... Kg7 {[%clk 0:00:16]} 65. Qe7+ {[%clk 0:00:04.3]} 65...
Kh6 {[%clk 0:00:15.7]} 66. Nxe4 {[%clk 0:00:02.6]} 66... Qg4+ {[%clk 0:00:15]}
67. Ng3 {[%clk 0:00:02.2]} 67... d2 {[%clk 0:00:14.9]} 68. Qe3+ {[%clk 0:00:02]}
68... Qg5 {[%clk 0:00:14.4]} 69. Qxg5+ {[%clk 0:00:02.5]} 69... Kxg5 {[%clk
0:00:15.3]} 70. Ne4+ {[%clk 0:00:03.4]} 70... Kf4 {[%clk 0:00:15.7]} 71. Nxd2
{[%clk 0:00:04.3]} 71... g5 {[%clk 0:00:16.3]} 72. Nb1 {[%clk 0:00:03.9]} 72...
Ke4 {[%clk 0:00:15.9]} 73. Nc3+ {[%clk 0:00:04.8]} 73... Kd4 {[%clk 0:00:16.8]}
74. Nxb5+ {[%clk 0:00:05.7]} 74... Kc4 {[%clk 0:00:17.7]} 75. Nd6+ {[%clk
0:00:06.2]} 75... Kxb4 {[%clk 0:00:18.6]} 76. Ne4 {[%clk 0:00:07]} 76... Ka3
{[%clk 0:00:19.5]} 77. Nxg5 {[%clk 0:00:07.8]} 77... Kxa2 {[%clk 0:00:20.4]} 78.
f4 {[%clk 0:00:08.7]} 1-0

[Event "*** Titled Tuesday Blitz"]
[Site "Chess.com"]
[Date "2020.11.03"]
[Round "9"]
[White "sokidze"]
[Black "PavlovDanila"]
[Result "1-0"]
[WhiteElo "2555"]
[BlackElo "2666"]
[TimeControl "180+1"]
[EndTime "11:51:56 PST"]
[Termination "sokidze won by resignation"]

1. e4 {[%clk 0:03:00.9]} 1... e6 {[%clk 0:02:59.1]} 2. d4 {[%clk 0:03:00.6]}
2... d5 {[%clk 0:02:58.9]} 3. Nd2 {[%clk 0:03:00.9]} 3... Nf6 {[%clk 0:02:58.8]}
4. e5 {[%clk 0:03:01.2]} 4... Nfd7 {[%clk 0:02:59.5]} 5. Bd3 {[%clk 0:03:01.4]}
5... c5 {[%clk 0:03:00.2]} 6. c3 {[%clk 0:03:01.4]} 6... Nc6 {[%clk 0:03:00.7]}
7. Ne2 {[%clk 0:03:02]} 7... cxd4 {[%clk 0:03:01.4]} 8. cxd4 {[%clk 0:03:02.2]}
8... f6 {[%clk 0:03:02.1]} 9. exf6 {[%clk 0:03:02.6]} 9... Nxf6 {[%clk 0:03:03]}
10. O-O {[%clk 0:03:02.1]} 10... Bd6 {[%clk 0:03:03.6]} 11. Nf3 {[%clk
0:03:02.5]} 11... Qc7 {[%clk 0:03:03.6]} 12. Nc3 {[%clk 0:03:02.6]} 12... a6
{[%clk 0:03:03.1]} 13. h3 {[%clk 0:03:02.7]} 13... O-O {[%clk 0:03:03.2]} 14.
Be3 {[%clk 0:03:02.6]} 14... e5 {[%clk 0:02:46]} 15. dxe5 {[%clk 0:02:49.2]}
15... Nxe5 {[%clk 0:02:46.9]} 16. Nd4 {[%clk 0:02:34.2]} 16... Nxd3 {[%clk
0:02:32]} 17. Qxd3 {[%clk 0:02:33.8]} 17... Qf7 {[%clk 0:02:20.9]} 18. Rad1
{[%clk 0:02:12.8]} 18... b5 {[%clk 0:02:13.5]} 19. a3 {[%clk 0:01:53.4]} 19...
Bb7 {[%clk 0:02:12.6]} 20. Nf5 {[%clk 0:01:49.2]} 20... Bc7 {[%clk 0:01:59.3]}
21. Bd4 {[%clk 0:01:48]} 21... Rfe8 {[%clk 0:01:50.8]} 22. Rfe1 {[%clk
0:01:31.1]} 22... Rad8 {[%clk 0:01:49.2]} 23. Rxe8+ {[%clk 0:01:23.5]} 23...
Rxe8 {[%clk 0:01:48]} 24. Bxf6 {[%clk 0:01:23]} 24... Qxf6 {[%clk 0:01:29.7]}
25. Nxd5 {[%clk 0:01:22.1]} 25... Bxd5 {[%clk 0:00:38]} 26. Qxd5+ {[%clk
0:01:22]} 26... Kh8 {[%clk 0:00:38.2]} 27. Qd7 {[%clk 0:01:02.5]} 27... Rd8
{[%clk 0:00:36.1]} 28. Qxc7 {[%clk 0:00:51.7]} 28... Rxd1+ {[%clk 0:00:35.3]}
29. Kh2 {[%clk 0:00:52.1]} 29... Rd8 {[%clk 0:00:25.6]} 30. Qc5 {[%clk
0:00:43.4]} 30... Re8 {[%clk 0:00:20.5]} 31. Ng3 {[%clk 0:00:40.5]} 31... h6
{[%clk 0:00:15.5]} 32. b4 {[%clk 0:00:30.2]} 32... Rf8 {[%clk 0:00:14.8]} 33. f3
{[%clk 0:00:26]} 33... Re8 {[%clk 0:00:14.4]} 34. Qc7 {[%clk 0:00:19.5]} 34...
Qe5 {[%clk 0:00:08.8]} 35. Qf7 {[%clk 0:00:19.3]} 35... Qe6 {[%clk 0:00:06.8]}
36. Qc7 {[%clk 0:00:17.2]} 36... Qe5 {[%clk 0:00:06.7]} 37. Qf7 {[%clk
0:00:17.1]} 37... Re6 {[%clk 0:00:06.1]} 38. f4 {[%clk 0:00:16.9]} 38... Qf6
{[%clk 0:00:05.9]} 39. Qc7 {[%clk 0:00:16.4]} 39... Re8 {[%clk 0:00:06]} 40. Nh5
{[%clk 0:00:09.2]} 40... Qg6 {[%clk 0:00:05.6]} 41. Ng3 {[%clk 0:00:09.7]} 41...
Qe6 {[%clk 0:00:05.1]} 42. Nh5 {[%clk 0:00:07.3]} 42... Qg6 {[%clk 0:00:03.8]}
43. Ng3 {[%clk 0:00:07.1]} 43... Rf8 {[%clk 0:00:04.4]} 44. f5 {[%clk
0:00:05.5]} 44... Qf7 {[%clk 0:00:04.3]} 45. Qd6 {[%clk 0:00:04.9]} 45... Qf6
{[%clk 0:00:04.8]} 46. Qd7 {[%clk 0:00:05.3]} 46... Rd8 {[%clk 0:00:05]} 47. Qc7
{[%clk 0:00:04.9]} 47... Qd6 {[%clk 0:00:05.6]} 48. Qf7 {[%clk 0:00:04.7]} 48...
Rf8 {[%clk 0:00:03.1]} 49. Qb7 {[%clk 0:00:04.5]} 49... Rxf5 {[%clk 0:00:02.2]}
50. Qc8+ {[%clk 0:00:02.9]} 50... Rf8 {[%clk 0:00:02.9]} 51. Qc2 {[%clk
0:00:03.5]} 51... Qf6 {[%clk 0:00:03.2]} 52. Qe4 {[%clk 0:00:03.1]} 52... Qd6
{[%clk 0:00:03.5]} 53. Qg4 {[%clk 0:00:01.8]} 53... Rd8 {[%clk 0:00:04.1]} 54.
h4 {[%clk 0:00:02.1]} 54... Rf8 {[%clk 0:00:04.5]} 55. Kh3 {[%clk 0:00:02.1]}
55... Qf4 {[%clk 0:00:04.2]} 56. Qe2 {[%clk 0:00:01.9]} 56... Qf6 {[%clk
0:00:03.2]} 57. Qe4 {[%clk 0:00:01.8]} 57... Qf7 {[%clk 0:00:03.2]} 58. Qe5
{[%clk 0:00:01.9]} 58... Re8 {[%clk 0:00:03.7]} 59. Qc3 {[%clk 0:00:01.9]} 59...
Qe6+ {[%clk 0:00:04.1]} 60. Kh2 {[%clk 0:00:02.5]} 60... Qe5 {[%clk 0:00:04.2]}
61. Qc6 {[%clk 0:00:02.4]} 61... Re6 {[%clk 0:00:04.3]} 62. Qc8+ {[%clk
0:00:02.8]} 62... Kh7 {[%clk 0:00:04]} 63. Qc2+ {[%clk 0:00:03.5]} 63... Kh8
{[%clk 0:00:02.6]} 64. Qc8+ {[%clk 0:00:03]} 64... Re8 {[%clk 0:00:03.3]} 65.
Qc2 {[%clk 0:00:03.2]} 65... Qe6 {[%clk 0:00:03.7]} 66. Qd3 {[%clk 0:00:03.4]}
66... Qc4 {[%clk 0:00:03.8]} 67. Qg6 {[%clk 0:00:03]} 67... Qe6 {[%clk
0:00:03.7]} 68. Qc2 {[%clk 0:00:02.5]} 68... Rc8 {[%clk 0:00:04.3]} 69. Qd3
{[%clk 0:00:02.2]} 69... Rc4 {[%clk 0:00:04.7]} 70. Qd8+ {[%clk 0:00:02.1]}
70... Kh7 {[%clk 0:00:05.1]} 71. h5 {[%clk 0:00:01.2]} 71... Rh4+ {[%clk
0:00:04.4]} 72. Qxh4 {[%clk 0:00:01.3]} 72... Qe5 {[%clk 0:00:03.9]} 73. Qh3
{[%clk 0:00:02.2]} 73... Kh8 {[%clk 0:00:03]} 74. Qf5 {[%clk 0:00:02.7]} 74...
Qe7 {[%clk 0:00:03.7]} 75. Qf3 {[%clk 0:00:02.7]} 75... Qh4+ {[%clk 0:00:04.1]}
76. Kg1 {[%clk 0:00:03.3]} 76... Qd4+ {[%clk 0:00:04.9]} 77. Qf2 {[%clk
0:00:03.7]} 77... Qd1+ {[%clk 0:00:05.3]} 78. Nf1 {[%clk 0:00:03.1]} 78... Qd6
{[%clk 0:00:05.7]} 79. g3 {[%clk 0:00:02.5]} 79... Qd5 {[%clk 0:00:05.9]} 80.
Qg2 {[%clk 0:00:02.3]} 80... Qxh5 {[%clk 0:00:06.1]} 81. Qa8+ {[%clk 0:00:02.1]}
81... Kh7 {[%clk 0:00:06.1]} 82. Qxa6 {[%clk 0:00:02.5]} 82... Qd5 {[%clk
0:00:05.8]} 83. Qc8 {[%clk 0:00:02]} 83... Qd4+ {[%clk 0:00:05.9]} 84. Kg2
{[%clk 0:00:02.7]} 84... Qe4+ {[%clk 0:00:06.3]} 85. Kf2 {[%clk 0:00:03.4]}
85... Qd4+ {[%clk 0:00:06.6]} 86. Ne3 {[%clk 0:00:04.1]} 86... Qd2+ {[%clk
0:00:07]} 87. Kf3 {[%clk 0:00:04.7]} 87... Qd4 {[%clk 0:00:07]} 88. Qf5+ {[%clk
0:00:04.9]} 88... Kh8 {[%clk 0:00:07.2]} 89. Qxb5 {[%clk 0:00:05.5]} 89... Qf6+
{[%clk 0:00:07.5]} 90. Qf5 {[%clk 0:00:05.4]} 90... Qb2 {[%clk 0:00:08.1]} 91.
b5 {[%clk 0:00:04.6]} 91... Qxa3 {[%clk 0:00:08.6]} 92. b6 {[%clk 0:00:04.6]}
92... Qb3 {[%clk 0:00:06.6]} 93. Qf8+ {[%clk 0:00:03]} 93... Kh7 {[%clk
0:00:06.6]} 94. Qf5+ {[%clk 0:00:03.2]} 94... Kh8 {[%clk 0:00:07]} 95. Qc8+
{[%clk 0:00:03.8]} 95... Kh7 {[%clk 0:00:06.9]} 96. b7 {[%clk 0:00:04.7]} 96...
Qb2 {[%clk 0:00:05.7]} 97. b8=Q {[%clk 0:00:04]} 97... Qf6+ {[%clk 0:00:05.7]}
98. Qf5+ {[%clk 0:00:04.1]} 98... Qxf5+ {[%clk 0:00:05.7]} 99. Nxf5 {[%clk
0:00:05]} 99... Kg6 {[%clk 0:00:06.5]} 100. Nxg7 {[%clk 0:00:04.8]} 100... Kxg7
{[%clk 0:00:06.7]} 101. Kg4 {[%clk 0:00:05.5]} 101... h5+ {[%clk 0:00:07.6]}
102. Kxh5 {[%clk 0:00:05.5]} 1-0

[Event "*** Titled Tuesday Blitz"]
[Site "Chess.com"]
[Date "2020.11.03"]
[Round "10"]
[White "WcmDominicToretto"]
[Black "JiiHart"]
[Result "0-1"]
[WhiteElo "1897"]
[BlackElo "2086"]
[TimeControl "180+1"]
[EndTime "11:54:43 PST"]
[Termination "JiiHart won by resignation"]

1. e4 {[%clk 0:02:50]} 1... c5 {[%clk 0:02:59.5]} 2. Nc3 {[%clk 0:02:49.1]} 2...
Nc6 {[%clk 0:02:59.5]} 3. f4 {[%clk 0:02:49.8]} 3... g6 {[%clk 0:02:52.3]} 4.
Nf3 {[%clk 0:02:50.2]} 4... Bg7 {[%clk 0:02:52.5]} 5. Bb5 {[%clk 0:02:49.3]}
5... e6 {[%clk 0:02:51.2]} 6. Bxc6 {[%clk 0:02:49]} 6... bxc6 {[%clk 0:02:47.1]}
7. O-O {[%clk 0:02:49.6]} 7... Ne7 {[%clk 0:02:45.8]} 8. d3 {[%clk 0:02:49.5]}
8... d5 {[%clk 0:02:45.7]} 9. Qe1 {[%clk 0:02:49.1]} 9... O-O {[%clk 0:02:44.1]}
10. Qh4 {[%clk 0:02:49.1]} 10... Ba6 {[%clk 0:02:17]} 11. f5 {[%clk 0:02:42.3]}
11... exf5 {[%clk 0:02:15]} 12. Ng5 {[%clk 0:02:41.7]} 12... h6 {[%clk
0:02:13.8]} 13. Nf3 {[%clk 0:02:40.9]} 13... dxe4 {[%clk 0:02:05.4]} 14. Nd2
{[%clk 0:02:32.9]} 14... Nd5 {[%clk 0:02:00.2]} 15. Nxd5 {[%clk 0:02:27.6]}
15... Qxh4 {[%clk 0:01:58.5]} 0-1

[Event "*** Titled Tuesday Blitz"]
[Site "Chess.com"]
[Date "2020.11.03"]
[Round "10"]
[White "ailime26"]
[Black "andrzej"]
[Result "0-1"]
[WhiteElo "1944"]
[BlackElo "2375"]
[TimeControl "180+1"]
[EndTime "11:55:20 PST"]
[Termination "andrzej won by resignation"]

1. e4 {[%clk 0:02:46.4]} 1... c5 {[%clk 0:02:59.7]} 2. Nf3 {[%clk 0:02:46]} 2...
d6 {[%clk 0:02:59.3]} 3. d4 {[%clk 0:02:46.9]} 3... cxd4 {[%clk 0:03:00.2]} 4.
Nxd4 {[%clk 0:02:47.6]} 4... Nf6 {[%clk 0:03:00.8]} 5. Nc3 {[%clk 0:02:48]} 5...
a6 {[%clk 0:03:00.9]} 6. Be3 {[%clk 0:02:48.4]} 6... e6 {[%clk 0:03:00.9]} 7. f3
{[%clk 0:02:48.8]} 7... h5 {[%clk 0:03:01.5]} 8. Qd2 {[%clk 0:02:41.1]} 8... b5
{[%clk 0:03:02]} 9. f4 {[%clk 0:02:38.9]} 9... b4 {[%clk 0:02:56.1]} 10. Na4
{[%clk 0:02:27.8]} 10... Nxe4 {[%clk 0:02:56]} 11. Qxb4 {[%clk 0:02:27.6]} 11...
d5 {[%clk 0:02:56]} 12. Qb3 {[%clk 0:02:21.3]} 12... Nd7 {[%clk 0:02:37.9]} 13.
f5 {[%clk 0:02:06.2]} 13... Rb8 {[%clk 0:02:16.4]} 14. Nc6 {[%clk 0:01:39.4]}
14... Rxb3 {[%clk 0:02:14.8]} 15. Nxd8 {[%clk 0:01:39.1]} 15... Rxe3+ {[%clk
0:02:14.7]} 0-1

[Event "*** Titled Tuesday Blitz"]
[Site "Chess.com"]
[Date "2020.11.03"]
[Round "10"]
[White "Piotrek1979"]
[Black "JosefineHeinemann"]
[Result "1-0"]
[WhiteElo "2494"]
[BlackElo "2595"]
[TimeControl "180+1"]
[EndTime "11:55:38 PST"]
[Termination "Piotrek1979 won by resignation"]

1. Nf3 {[%clk 0:03:00.9]} 1... c5 {[%clk 0:02:59.4]} 2. e4 {[%clk 0:02:59.6]}
2... Nc6 {[%clk 0:02:59.4]} 3. d4 {[%clk 0:02:57.9]} 3... cxd4 {[%clk 0:02:58]}
4. Nxd4 {[%clk 0:02:58.8]} 4... g6 {[%clk 0:02:58.5]} 5. Nc3 {[%clk 0:02:56.3]}
5... Bg7 {[%clk 0:02:59]} 6. Be3 {[%clk 0:02:56.8]} 6... Nf6 {[%clk 0:02:59.5]}
7. Bc4 {[%clk 0:02:57]} 7... O-O {[%clk 0:02:59.7]} 8. Bb3 {[%clk 0:02:53.9]}
8... Qa5 {[%clk 0:02:57.9]} 9. O-O {[%clk 0:02:40]} 9... d6 {[%clk 0:02:57.3]}
10. h3 {[%clk 0:02:40]} 10... Bd7 {[%clk 0:02:51.2]} 11. Nde2 {[%clk 0:02:32.9]}
11... a6 {[%clk 0:02:49.6]} 12. Nf4 {[%clk 0:02:24.8]} 12... Rfe8 {[%clk
0:02:36]} 13. Nfd5 {[%clk 0:02:24.4]} 13... Nxd5 {[%clk 0:02:36]} 14. Nxd5
{[%clk 0:02:25.2]} 14... Bxb2 {[%clk 0:02:30.5]} 15. Bb6 {[%clk 0:02:11.4]}
15... Qa3 {[%clk 0:02:30.4]} 16. Rb1 {[%clk 0:02:00.5]} 16... Rac8 {[%clk
0:02:29.7]} 17. c3 {[%clk 0:01:57.1]} 17... Ne5 {[%clk 0:02:13.9]} 18. Qd2
{[%clk 0:01:44.5]} 18... Bxc3 {[%clk 0:01:57.8]} 19. Nxc3 {[%clk 0:01:45.4]}
19... Qb4 {[%clk 0:01:55.4]} 20. Bxf7+ {[%clk 0:01:44.6]} 1-0

[Event "*** Titled Tuesday Blitz"]
[Site "Chess.com"]
[Date "2020.11.03"]
[Round "10"]
[White "monalize"]
[Black "jonaszmb"]
[Result "0-1"]
[WhiteElo "2286"]
[BlackElo "2421"]
[TimeControl "180+1"]
[EndTime "11:55:53 PST"]
[Termination "jonaszmb won by resignation"]

1. e4 {[%clk 0:03:00.9]} 1... c5 {[%clk 0:02:55.4]} 2. Nf3 {[%clk 0:02:59.6]}
2... Nc6 {[%clk 0:02:55.9]} 3. d4 {[%clk 0:02:59.5]} 3... cxd4 {[%clk
0:02:56.8]} 4. Nxd4 {[%clk 0:02:59.8]} 4... e5 {[%clk 0:02:57.4]} 5. Nb5 {[%clk
0:02:58.1]} 5... a6 {[%clk 0:02:57.7]} 6. N5c3 {[%clk 0:02:57.3]} 6... Nf6
{[%clk 0:02:52.9]} 7. g3 {[%clk 0:02:56.5]} 7... Bb4 {[%clk 0:02:45.4]} 8. a3
{[%clk 0:02:54.8]} 8... Ba5 {[%clk 0:02:41.1]} 9. Bg2 {[%clk 0:02:54.7]} 9...
O-O {[%clk 0:02:35.5]} 10. O-O {[%clk 0:02:53.9]} 10... d6 {[%clk 0:02:35]} 11.
h3 {[%clk 0:02:53.4]} 11... Be6 {[%clk 0:02:32.4]} 12. Bg5 {[%clk 0:02:43.9]}
12... Nd4 {[%clk 0:02:21]} 13. b4 {[%clk 0:02:28.7]} 13... Bb6 {[%clk
0:02:18.9]} 14. Nd5 {[%clk 0:02:28.3]} 14... Bxd5 {[%clk 0:02:15.9]} 15. exd5
{[%clk 0:02:28]} 15... h6 {[%clk 0:02:13.1]} 16. Be3 {[%clk 0:02:15.3]} 16...
Rc8 {[%clk 0:02:07]} 17. Ra2 {[%clk 0:02:12.1]} 17... Nf5 {[%clk 0:02:06.3]} 18.
Bxb6 {[%clk 0:02:04.6]} 18... Qxb6 {[%clk 0:02:07.2]} 19. Qd3 {[%clk 0:02:04.3]}
19... e4 {[%clk 0:02:03.3]} 20. Qb3 {[%clk 0:01:51.1]} 20... e3 {[%clk
0:01:58.5]} 21. Kh2 {[%clk 0:01:47.6]} 21... e2 {[%clk 0:01:51.7]} 22. Re1
{[%clk 0:01:45.2]} 22... Qxf2 {[%clk 0:01:51.4]} 23. c4 {[%clk 0:01:44.2]} 23...
Qxe1 {[%clk 0:01:48.4]} 0-1

[Event "*** Titled Tuesday Blitz"]
[Site "Chess.com"]
[Date "2020.11.03"]
[Round "10"]
[White "Rakhimzhan_Alen"]
[Black "ehrenfeld"]
[Result "0-1"]
[WhiteElo "2599"]
[BlackElo "2497"]
[TimeControl "180+1"]
[EndTime "11:56:50 PST"]
[Termination "ehrenfeld won by resignation"]

1. d4 {[%clk 0:03:00.9]} 1... Nf6 {[%clk 0:02:59.4]} 2. c4 {[%clk 0:03:00.7]}
2... e6 {[%clk 0:02:59.7]} 3. Nc3 {[%clk 0:03:01.2]} 3... Bb4 {[%clk 0:02:59.9]}
4. Qc2 {[%clk 0:03:01.7]} 4... d6 {[%clk 0:02:59.3]} 5. e4 {[%clk 0:03:01]} 5...
e5 {[%clk 0:02:56]} 6. Qa4+ {[%clk 0:02:56.6]} 6... Nc6 {[%clk 0:02:48.9]} 7. d5
{[%clk 0:02:55.1]} 7... Bxc3+ {[%clk 0:02:44.4]} 8. bxc3 {[%clk 0:02:56]} 8...
Nxe4 {[%clk 0:02:41.1]} 9. dxc6 {[%clk 0:02:54.7]} 9... O-O {[%clk 0:02:40.5]}
10. cxb7 {[%clk 0:02:43.2]} 10... Bxb7 {[%clk 0:02:39.7]} 11. Nf3 {[%clk
0:02:40.2]} 11... Nc5 {[%clk 0:02:38]} 12. Qc2 {[%clk 0:02:38.3]} 12... e4
{[%clk 0:02:16.3]} 13. Nd4 {[%clk 0:02:33.6]} 13... f5 {[%clk 0:02:15.7]} 14.
Bf4 {[%clk 0:02:30.7]} 14... g5 {[%clk 0:02:12]} 15. Bc1 {[%clk 0:02:23.7]}
15... Qe7 {[%clk 0:02:07.8]} 16. Be2 {[%clk 0:02:19.4]} 16... Nd3+ {[%clk
0:02:01.7]} 17. Kf1 {[%clk 0:02:19.6]} 17... Rae8 {[%clk 0:01:58.5]} 18. h4
{[%clk 0:02:18.2]} 18... f4 {[%clk 0:01:54]} 19. hxg5 {[%clk 0:02:16.6]} 19...
f3 {[%clk 0:01:51.9]} 20. gxf3 {[%clk 0:02:11]} 20... exf3 {[%clk 0:01:51.6]}
21. Be3 {[%clk 0:01:34.4]} 21... fxe2+ {[%clk 0:01:48.3]} 22. Qxe2 {[%clk
0:01:30]} 22... Bxh1 {[%clk 0:01:33.7]} 23. Qxd3 {[%clk 0:01:24.5]} 23... Qxe3
{[%clk 0:01:31.4]} 24. Qxe3 {[%clk 0:01:24.4]} 24... Rxe3 {[%clk 0:01:31.1]} 25.
Kg1 {[%clk 0:01:22.9]} 25... Rh3 {[%clk 0:01:30.8]} 26. Re1 {[%clk 0:01:19.9]}
26... Bf3 {[%clk 0:01:29.4]} 27. Nxf3 {[%clk 0:01:18.4]} 27... Rhxf3 {[%clk
0:01:29.2]} 0-1

[Event "*** Titled Tuesday Blitz"]
[Site "Chess.com"]
[Date "2020.11.03"]
[Round "10"]
[White "Lysiak_Poltorak"]
[Black "vladgoncharov"]
[Result "0-1"]
[WhiteElo "2360"]
[BlackElo "2469"]
[TimeControl "180+1"]
[EndTime "11:57:22 PST"]
[Termination "vladgoncharov won by resignation"]

1. d4 {[%clk 0:03:00.9]} 1... Nf6 {[%clk 0:02:58.1]} 2. c4 {[%clk 0:02:55.8]}
2... c5 {[%clk 0:02:57.9]} 3. d5 {[%clk 0:02:55.9]} 3... e6 {[%clk 0:02:58]} 4.
Nc3 {[%clk 0:02:56.4]} 4... exd5 {[%clk 0:02:58.7]} 5. cxd5 {[%clk 0:02:57.3]}
5... d6 {[%clk 0:02:58.5]} 6. e4 {[%clk 0:02:57.8]} 6... g6 {[%clk 0:02:58.2]}
7. f3 {[%clk 0:02:58.3]} 7... Bg7 {[%clk 0:02:57.7]} 8. Nge2 {[%clk 0:02:58.8]}
8... O-O {[%clk 0:02:57.3]} 9. Ng3 {[%clk 0:02:59.5]} 9... Nbd7 {[%clk
0:02:52.1]} 10. Be2 {[%clk 0:02:58.5]} 10... a6 {[%clk 0:02:48.5]} 11. a4 {[%clk
0:02:58.1]} 11... Qc7 {[%clk 0:02:47.9]} 12. Nf1 {[%clk 0:02:55]} 12... Rb8
{[%clk 0:02:46.2]} 13. Ne3 {[%clk 0:02:54.8]} 13... Re8 {[%clk 0:02:44.6]} 14.
O-O {[%clk 0:02:54.1]} 14... Nb6 {[%clk 0:02:29.4]} 15. a5 {[%clk 0:02:46.1]}
15... Nbd7 {[%clk 0:02:28.7]} 16. Nc4 {[%clk 0:02:46.1]} 16... b5 {[%clk
0:02:17.5]} 17. axb6 {[%clk 0:02:45.5]} 17... Nxb6 {[%clk 0:02:17.6]} 18. Nxb6
{[%clk 0:02:21.7]} 18... Rxb6 {[%clk 0:02:15.6]} 19. Bf4 {[%clk 0:02:02.5]}
19... Nd7 {[%clk 0:02:13.2]} 20. Qd2 {[%clk 0:01:56.3]} 20... Ne5 {[%clk
0:02:03.3]} 21. Ra2 {[%clk 0:01:46.2]} 21... Bb7 {[%clk 0:01:52.1]} 22. Rfa1
{[%clk 0:01:43.2]} 22... Rb8 {[%clk 0:01:51]} 23. Na4 {[%clk 0:01:27]} 23... Rb4
{[%clk 0:01:48.1]} 24. Rc1 {[%clk 0:01:24.9]} 24... Bc8 {[%clk 0:01:41.7]} 25.
Nc3 {[%clk 0:01:23.6]} 25... Nc4 {[%clk 0:01:37]} 26. Bxc4 {[%clk 0:01:09.6]}
26... Rxc4 {[%clk 0:01:37.9]} 27. Ra4 {[%clk 0:01:04.2]} 27... Bxc3 {[%clk
0:01:26.5]} 28. Qc2 {[%clk 0:00:58.5]} 28... Bd4+ {[%clk 0:01:19.5]} 0-1